{"text_format":"1","workbook":"xlsx","n_sheets":12,"sheets":["Inledning","Instruktion","Basdata","Standard1","Standard2","Standard3","Standard4","Standard5","Indikatorer","Diagram","Handlingsplan"," "],"not_rendered":{"charts":7,"images":5,"macros":1,"external_links":0,"defined_names":9,"comments":6,"pivot_tables":0},"unopened":[],"bounds":{"document_bytes":16777216,"sheet_cells":100000,"rows_first":2000,"rows_last":500,"rows_between":2000,"halvings":0,"cell_chars":16384,"cell_head_chars":4096},"cells_cut":0,"cells_raw":0,"read":"whole","date_system":"1900"}

{"sheet":"Inledning","index":0,"n_rows":17,"n_cols":2,"rows_kept":17,"cut":false,"hidden":false,"merged":[]}
[]
[]
[null,"Verktyg för självevaluering av Hälsofrämjande hälso- och sjukvård"]
[null,"Inledning"]
[null,"Detta verktyg för utvärdering av regionernas arbete med hälsofrämjande hälso- och sjukvård är primärt tänkt att användas som ett självskattningsverktyg. Genom att systematiskt gå igenom de standards som finns inom fem områden kan varje medlemsorganisation ta fram en profil som speglar hur långt verksamheten kommit i sin utveckling mot HPH-nätverkets vision.\n\nVerktyget utgår från HPH-nätverkets nya standards (2020) för hälsofrämjande hälso- och sjukvård. Dessa standards återspeglar nya policyområden, praxis och evidens för att stödja en bredare implementering av en hälsofrämjande hälso- och sjukvård. Dessa standards utgår från den inriktning som formulerats i \"HPH Global Strategi 2021–2025\" samt de möjligheter och utmaningar som beskrivits i initiativ såsom FN: s hållbara utvecklingsmål och Shanghai-deklarationen om främjande av hälsa i Agenda 2030.\n\nI verktyget bedöms 5 standards; organisationens åtagande, tillgång till hälso- och sjukvård, personcentrering och partnerskap, hälsosam arbetsplats och vårdmiljö samt främja hälsa i befolkningen. Under varje standard finns ett antal substandards och kriterier."]
[null,"Format för standards "]
[null,"Standards presenteras med följande struktur: "]
[null,"•      Nummer och namn på standarden"]
[null,"•      Beskrivning av standardens innehåll "]
[null,"•      Nummer och namn på substandards under varje standard"]
[null,"•      Kriterier inom varje substandard"]
[null,"Verktyget omfattar 5 standards, 17 substandards och 63 kriterier.\n"]
[null,"Syfte"]
[null,"Syftet med detta verktyg är att stimulera till utveckling av en hälso-orienterad kultur i hela organisationen.\n\nFörväntan är inte att en medlemsorganisation enkelt kan leva upp till alla dessa standards. Snarare är förhoppningen att de ska uppmuntra till en fokusering av organisationens strategi för att bättre hantera övergripande utmaningar inom hälso- och sjukvården och verkligen leda till en hälsofrämjande kultur. Följaktligen utformades inte standards i första hand för att möjliggöra extern revision av hälso- och sjukvårdens hälsofrämjande utveckling utan snarare ska de stimulera processer för ständig intern förbättring. "]
[null,"Resultatet av självevalueringen och handlingsplan"]
[null,"Resultatet presenteras i diagram och är främst tänkt att användas för eget förbättringsarbete och det är då lämpligt att utforma en handlingsplan för att hantera de områden som organisationen prioriterar. Underlag till handlingsplan finns i en separat flik.\n\nDet är önskvärt bedömningarna lämnas till HFS sekretariat. De utgör därmed ett underlag för att bedöma hur långt olika organisationer har kommit. \nHFS sekretariat hjälper till att skapa dialog mellan organisationer som önskar jämföra sig med andra och lära av varandra.\n"]
[null,"Gå till instruktion"]

{"sheet":"Instruktion","index":1,"n_rows":22,"n_cols":2,"rows_kept":22,"cut":false,"hidden":false,"merged":[]}
[]
[]
[null,"Instruktion för att använda verktyget för självevaluering"]
[null,"Makron"]
[null,"Detta verktyg innehåller makron för att dina val automatiskt ska kunna generera diagram och handlingsplaner.\nDu måste aktivera makron innan det fungerar.\nVanligen får du en fråga när du öppnar verktyet och då ska du svara \"aktivera makron\".\nOm det inte fungerar så kan du när du öppnat dokumentet välja Arkiv, välja Info, därefter aktivera innehåll. "]
[null,"Basdata"]
[null,"Dokumentet innehåller en flik med basdata. \nAnge vilken organisation som bedöms. Det kan vara en hel eller del av en region, en förvaltning, en verksamhet eller en arbetsplats.\nAnge vem som har ingått i bedömningsteamet\nAnge vilka källor som använts för att värdera de olika standards"]
[null,"Bedömning av standards, substandars och kriterier samt val av kriterier"]
[null,"Det finns en flik för varje standard. I respektive flik görs en bedömning av substandards och kriterier genom att skjuta reglaget på en linje från \"instämmer inte alls\" till \"instämmer helt\"\nI flera av kriterierna finns förklarande text. Det syns genom en röd triangel. Hjälptexten kommer fram genom att placera markören över kriteriet.\nDet är möjligt att göra urval av de kriterier som är relevanta för den organisation som bedöms. Ta bort ett kriterium genom att klicka på \"N/A\" och lägg tillbaka kriteriet genom att klicka på \"Återställ\"\n\nVid sidan av varje substandard finns ett fritextfält där det är möjligt att skriva in kommentarer.\nHär är det lämpligt att skriva förklarande text och vilka källor som användts för att värdera kriteriet.\nGenom att skriva in kommentarer så underlättas förståelsen för hur bedömningen har gjorts vilket underlättar när en ny bedömning ska göras för att jämföra med tidigare år."]
[null,"HFS nationella indikatorer för hälsofrämjande och jämlik hälso- och sjukvård"]
[null,"I fliken Indikatorer finns möjlighet HFS nationella indikatorer hämtade från \"Vården i siffror\". Här går det att fylla i resultat som är bättre eller sämre än rikssnittet. Det går även att markera indikatorer som inte är relevanta för den valda organisationen."]
[null,"Diagram"]
[null,"Till varje standard är det kopplat ett spindeldiagram där resultatet av bedömningen av substandards och kriterier omedelbart kan visualiseras.\nI sista fliken finns också ett diagram som ger en sammanfattande bedömning där styrkor och utvecklingsområden blir tydligt."]
[]
[null,"Handlingsplan"]
[null,"I fliken \"Handlingsplan\" går det att skapa en grund till fortsatt arbete med en handlingsplan. Genom att skapa en handlingsplan presenteras alla de indikatorer som är bedömda till 3 eller mindre. Det går sedan att fylla i mål, aktiviteter, ansvar och uppföljning i fliken eller kopiera materialet till ett annat dokument för fortsatt bearbetning."]
[]
[null,"Processbeskrivning"]
[null,"För att underlätta förbättringsarbetet för en mer hälsofrämjande hälso- och sjukvård finns en processbeskrivning. När regionerna har genomfört sina bedömningar är det önskvärt att dessa lämnas till HFS sekretariat. Det ger då en samlad bild för att bedöma hur långt de olika regioner har kommit och sekretariatet kan också vara behjälpligt för att samla regioner som i dialog önskar jämföra sig med och lära av andra regioners utveckling."]
[]
[]
[null,"Gå till Basdata"]

{"sheet":"Basdata","index":2,"n_rows":9,"n_cols":3,"rows_kept":9,"cut":false,"hidden":false,"merged":[]}
[]
[]
[null,"Basdata"]
[null,"Vilken organisation bedöms?","Ange organisation"]
[null,"Vilka ingår i bedömningsteamet?"]
[null,"Vilka källor används för att bedöma standards?\nT ex \n- Hälsa på lika villkor\n- Patientenkäter\n- Hälso- och sjukvårdsbarometern\n- Egna uppföljningar\n…osv."]
[]
[]
[null,"Gå till standard 1"]

{"sheet":"Standard1","index":3,"n_rows":20,"n_cols":7,"rows_kept":20,"cut":false,"hidden":false,"merged":[]}
[]
[{"$f":"Basdata!C4","v":"Ange organisation"}]
["1 Organisationens åtagande"]
["Vår organisation har åtagit sig att utforma styrmodeller, riktlinjer, strukturer, processer och kultur för att optimera hälsovinster hos patienter, medarbetare och befolkning samt för att stödja hållbara samhällen",null,null,"Bedömning",null,"Urval","Kommentarer"]
["1.1 Ledarskap"]
["1.1.1 Vår organisation har en hälsofrämjande hälso- och sjukvård som en del av sin övergripande strategi.",1,"Instämmer inte alls",null,"instämmer helt"]
["1.1.2 Vår organisations högsta ledning agerar i enlighet med den övergripande strategin.",1,"Instämmer inte alls",null,"instämmer helt"]
["1.1.3 Vår organisation har en kultur som präglas av hälsorientering.",1,"Instämmer inte alls",null,"instämmer helt"]
["1.1.4 Vår organisations ledning följer upp utvecklingen av hälsofrämjande hälso- och sjukvård",1,"Instämmer inte alls",null,"instämmer helt"]
["1.1.5 Ledningen säkerställer förutsättningar för en hälsofrämjande hälso- och sjukvård t ex infrastruktur, resurser, lokaler och utrustning.",1,"Instämmer inte alls",null,"instämmer helt"]
["1.2 Mål och uppdrag"]
["1.2.1 Vår organisations uttalade mål och uppdrag fokuserar på bästa möjliga hälsovinst för patienterna.",1,"Instämmer inte alls",null,"instämmer helt"]
["1.2.2 Vår organisations mål och uppdrag kommuniceras tydligt till alla intressenter.",1,"Instämmer inte alls",null,"instämmer helt"]
["1.3 Planering, genomförande och uppföljning"]
["1.3.1 Vår organisation följer systematiskt hälsan och dess bestämningsfaktorer i befolkningen som grund för planering av våra hälso- och sjukvårdstjänster.",1,"Instämmer inte alls",null,"instämmer helt"]
["1.3.2 Vår organisation följer systematiskt hälsan och dess bestämningsfaktorer i befolkningen som grund för genomförande och utveckling av våra hälso- och sjukvårdstjänster.",1,"Instämmer inte alls",null,"instämmer helt"]
["1.3.3 Organisationen utvärderar systematiskt våra åtgärder för att förbättra patienternas hälsovinst. ",1,"Instämmer inte alls",null,"instämmer helt"]
[null,1]
["Gå till standard 2"]
["Se resultat"]

{"sheet":"Standard2","index":4,"n_rows":16,"n_cols":7,"rows_kept":16,"cut":false,"hidden":false,"merged":[]}
[]
[{"$f":"Basdata!C4","v":"Ange organisation"}]
["2 Säkerställa tillgång till hälso- och sjukvård"]
["Organisationen genomför åtgärder för att säkerställa tillgång till, tillgänglighet och användbarhet av hälso- och sjukvårdens tjänster.",null,null,"Bedömning",null,"Urval","Kommentarer"]
["2.1 Patientens rättigheter och tillgång till jämlik hälso- och sjukvård"]
["2.1.1 Vår organisation informerar alla patienter om deras rättigheter kopplat till hälso- och sjukvård.",1,"Instämmer inte alls",null,"Instämmer helt"]
["2.1.2 Vår organisation har en policy för att bedöma och ge stöd till grupper och individer med särskild risk för ohälsa.",1,"Instämmer inte alls",null,"Instämmer helt"]
["2.2 Tillgång till information"]
["2.2.1 Vår organisation erbjuder tillgänglig och användbar information om sina hälso- och sjukvårdstjänster för alla.",1,"Instämmer inte alls",null,"Instämmer helt"]
["2.2.2 Vår organisation erbjuder riktade insatser till grupper och individer med särskild risk för ohälsa.",1,"Instämmer inte alls",null,"Instämmer helt"]
["2.3 Social och kulturell acceptans"]
["2.3.1 Vår organisation uppvisar förståelse och respekt för olika värderingar, behov och preferenser hos individer och grupper i samhället. ",1,"Instämmer inte alls",null,"Instämmer helt"]
["2.1.1 Vår organisation genomför riktade åtgärder för att säkerställa att alla patienters rättigheter och särskilda behov respekteras.",1,"Instämmer inte alls",null,"Instämmer helt"]
[]
["Gå till standard 3"]
["Se resultat"]

{"sheet":"Standard3","index":5,"n_rows":31,"n_cols":7,"rows_kept":31,"cut":false,"hidden":false,"merged":[]}
[]
[{"$f":"Basdata!C4","v":"Ange organisation"}]
["3 Personcentrering och partnerskap"]
["Vår organisation strävar efter en personcentrerad hälso- och sjukvård med bästa möjliga hälsovinst och möjliggör för patienter, närstående och invånare i lokalsamhället att delta och bidra i våra aktiviteter",null,null,"Bedömning",null,"Urval","Kommentarer"]
["3.1 Bedöma behov av hälso- och sjukvårdsinsatser"]
["3.1.1 Vår organisation samverkar med patienter, närstående och andra vårdgivare för att utveckla metoder för att bedöma patienters behov av hälso- och sjukvårdsinsatser",1,"Instämmer inte alls",null,"instämmer helt"]
["3.1.2 Vår organisation har metoder för att bedöma och dokumentera behovet av interventioner avseende riskfaktorer såsom tobak, alkohol, matvanor och fysisk inaktivitet.",1,"Instämmer inte alls",null,"instämmer helt"]
["3.1.3 Vår organisation har rutiner för att identifiera psykisk ohälsa hos somatiskt sjuka patienter.",1,"Instämmer inte alls",null,"instämmer helt"]
["3.1.4 Vår organisation har rutiner för att identifiera somatisk ohälsa hos patienter med psykisk ohälsa eller sjukdom",1,"Instämmer inte alls",null,"instämmer helt"]
["3.1.5 Vår organisation har rutiner för att identifierar  behov hos särskilt sårbara grupper för att åstadkomma en mer jämlik vård.",1,"Instämmer inte alls",null,"instämmer helt"]
["3.2 Partnerskap i hälso- och sjukvårdens utformning"]
["3.2.1 Vår organisation stödjer medverkan från alla berörda i planering, genomförande och utvärdering av hälso- och sjukvården.",1,"Instämmer inte alls",null,"instämmer helt"]
["3.2.2 I vår organisation sker patientmöten med hänsyn till patientintegritet och med tillräcklig tid avsatt för att stödja effektiv kommunikation. ",1,"Instämmer inte alls",null,"instämmer helt"]
["3.2.3 Vår organisation bjuder in och gör det möjligt för alla patienter och närstående att bli aktiva partners i vården och partners för delat beslutsfattande.",1,"Instämmer inte alls",null,"instämmer helt"]
["3.2.4 Vår organisation erbjuder alla patienter individuellt anpassade hälso- och sjukvårdsinsatser",1,"Instämmer inte alls",null,"instämmer helt"]
["3.3 Kommunikation med patient och närstående i mötet"]
["3.3.1 Vår organisation arbetar personcentrerat med delat beslutsfattande för att stödja patienter och närstående som vill vara aktiva i vården.",1,"Instämmer inte alls",null,"instämmer helt"]
["3.3.2 Vår organisation säkerställer personalens kompetens i tekniker som stödjer kommunikation och personcentrerad vård.",1,"Instämmer inte alls",null,"instämmer helt"]
["3.3.3 I vår organisation har vi ett hälsofrämjande förhållningssätt i alla möten. ",1,"Instämmer inte alls",null,"instämmer helt"]
["3.3.4 Vår organisation har tillgång till tolk där det behövs för att underlätta kommunikation med patient och närstående.",1,"Instämmer inte alls",null,"instämmer helt"]
["3.4 Stöd till beteendeförändring och egenmakt"]
["3.4.1 Vår organisation har tydlig, relevant och förståelig information till patienter och närstående om tillstånd, behandling, vård samt om faktorer som påverkar deras hälsa.",1,"Instämmer inte alls",null,"instämmer helt"]
["3.4.2 Vår organisation erbjuder rådgivning om tobak, alkohol, matvanor och fysisk aktivitet baserat på individuell bedömning av patientens behov och önskemål.",1,"Instämmer inte alls",null,"instämmer helt"]
["3.4.3 Vår organisation genomför insatser som stödjer egenvård.",1,"Instämmer inte alls",null,"instämmer helt"]
["3.5 Samarbete med andra vårdgivare"]
["3.5.1 Vår organisation samarbetar med andra för att patienten ska uppleva en sammanhållen vård.",1,"Instämmer inte alls",null,"instämmer helt"]
["3.5.2 Vår organisation har tydliga rutiner för att utbyta relevant patientinformation i rätt tid med andra organisationer.",1,"Instämmer inte alls",null,"instämmer helt"]
[]
["3. Personcentrering och partnerskap",{"$f":"(B6+B7+B8+B9+B10+B12+B13+B14+B15+B17+B18+B19+B20+B22+B23+B24+B26+B27)/18","v":1}]
["Gå till standard 4"]
["Se resultat"]

{"sheet":"Standard4","index":6,"n_rows":20,"n_cols":7,"rows_kept":20,"cut":false,"hidden":false,"merged":[]}
[]
[{"$f":"Basdata!C4","v":"Ange organisation"}]
["4 Skapa hälsofrämjande arbetsplatser och miljöer"]
["Vår organisationen utvecklar hälsofrämjande arbetsplatser och strävar efter miljöer i hälso- och sjukvården som bidrar till god  hälsa för patienter, närstående och medarbetare.",null,null,"Bedömning",null,"Urval","Kommentarer"]
["4.1 Hälsofrämjande arbetsplats"]
["4.1.1 Vår organisation gör regelbundet bedömning av medarbetarnas hälsobehov och erbjuder hälsofrämjande insatser avseende tobak, alkohol, matvanor, fysisk aktivitet och psykosocial stress.",1,"Instämmer inte alls",null,"instämmer helt"]
["4.1.2 Vår organisation utvecklar medarbetarnas kunskap om faktorer som påverkar deras hälsa.",1,"Instämmer inte alls",null,"instämmer helt"]
["4.1.3 Vår organisation säkerställer medarbetarmedverkan i beslut som påverkar vårdprocesser och deras arbetsmiljö.",1,"Instämmer inte alls",null,"instämmer helt"]
["4.1.4 Vår organisation utvecklar arbetssätt med multidisciplinära team där det är relevant.",1,"Instämmer inte alls",null,"instämmer helt"]
["4.1.5 Vår organisation etablerar en hälsofrämjande arbetsplats avseende psykosocial arbetsmiljö.",1,"Instämmer inte alls",null,"instämmer helt"]
["4.2 Hälsofrämjande miljö i hälso- och sjukvården"]
["4.2.1 Vår organisation erbjuder en miljö där patienter, närstående och medarbetare känner sig trygga och där deras värdighet och integritet respekteras.",1,"Instämmer inte alls",null,"instämmer helt"]
["4.2.2 Vår organisation erbjuder en miljö som är inkluderande och tillgänglig.",1,"Instämmer inte alls",null,"instämmer helt"]
["4.2.3 Vår organisation erbjuder utrymmen för återhämtning, rörelse och gemenskap för patienter och närstående.",1,"Instämmer inte alls",null,"instämmer helt"]
["4.2.4 Vår organisation tillhandahåller mat som är hållbar för både miljö och hälsa.",1,"Instämmer inte alls",null,"instämmer helt"]
["4.2.5 Vår organisation säkerställer att vårdmiljön är rökfri. ",1,"Instämmer inte alls",null,"instämmer helt"]
["4.2.6 Vår organisation minimerar onödigt buller. ",1,"Instämmer inte alls",null,"instämmer helt"]
[]
["Gå till standard 5"]
["Se resultat"]

{"sheet":"Standard5","index":7,"n_rows":28,"n_cols":7,"rows_kept":28,"cut":false,"hidden":false,"merged":[]}
[]
[{"$f":"Basdata!C4","v":"Ange organisation"}]
["5 Främja hälsa i befolkningen"]
["Vår organisation tar ansvar för att främja hälsa hos befolkningen i lokalsamhället",null,null,"Bedömning",null,"Urval","Kommentarer"]
["5.1 Befolkningens hälsobehov"]
["5.1.1 Vår organisation samlar in data om vårdkonsumtion för befolkningen i upptagningsområdet, som ett underlag för att förbättra tillgången till och jämlikheten i hälso- och sjukvården.",1,"Instämmer inte alls",null,"Instämmer helt"]
["5.1.2 Vår organisation samarbetar med andra samhällsaktörer för att samla information om befolkningens hälsa",1,"Instämmer inte alls",null,"Instämmer helt"]
["5.1.3 Vår organisation samlar information om fördelningen av hälsans bestämningsfaktorer i befolkningen för att identifiera behov av sjukdomsförebyggande och hälsofrämjande insatser.",1,"Instämmer inte alls",null,"Instämmer helt"]
["5.1.4 Baserat på bedömningen av behov har vår organisation identifierat åtgärder och samarbetspartners för att förbättra hälsan hos befolkningen i lokalsamhället.",1,"Instämmer inte alls",null,"Instämmer helt"]
["5.2 Insatser för att förbättra befolkningens hälsa"]
["5.2.1 Vår organisation genomför uppsökande insatser för utvalda åldersgrupper i primärpreventivt syfte.",1,"Instämmer inte alls",null,"Instämmer helt"]
["5.2.2 Vår organisation samverkar med andra samhällsaktörer och tar initiativ för kunskapsöverföring om faktorer som påverkar hälsan och deltar i gemensamma insatser.",1,"Instämmer inte alls",null,"Instämmer helt"]
["5.2.3 Vår organisation tar ansvar för nya arbetsformer till grupper med särskild risk för ohälsa i samhället ",1,"Instämmer inte alls",null,"Instämmer helt"]
["5.3 Insatser för minskad miljöpåverkan"]
["5.3.1 Vår organisation bidrar till minskad miljöpåverkan genom att främja användningen av säkra kemikalier, material och processer.",1,"Instämmer inte alls",null,"Instämmer helt"]
["5.3.2 Vår organisation minskar volym och skadlighet av avfall.",1,"Instämmer inte alls",null,"Instämmer helt"]
["5.3.3 Vår organisation minskar användning av fossil energi och främjar energieffektivitet.",1,"Instämmer inte alls",null,"Instämmer helt"]
["5.3 4 Vår organisation använder återvinning och behandlingsmetoder för att minska vattenförbrukning och miljöfarliga utsläpp.",1,"Instämmer inte alls",null,"Instämmer helt"]
["5.3.5 Vår organisation väljer strategier för transporter och tjänster som minskar klimatpåverkan och lokala föroreningar.",1,"Instämmer inte alls",null,"Instämmer helt"]
["5.4 Forskning och utveckling"]
["5.4.1 Vår organisation främjar forskning om hälsofrämjande och sjukdomsförebyggande metoder och innovationer riktade till grupper med särkild risk för ohälsa i syfte att förbättra tillgänglighet och kvalitet i vården. ",1,"Instämmer inte alls",null,"Instämmer helt"]
["5.4.2 Vår organisation bidrar aktivt till kunskapsspridning i internationella, nationella eller regionala nätverk för hälsofrämjande hälso- och sjukvård.",1,"Instämmer inte alls",null,"Instämmer helt"]
["5.4.3 Vår organisation stödjer  forskningsaktiviteter som involverar patienter, närstående och invånare.",1,"Instämmer inte alls",null,"Instämmer helt"]
["5.4.4 Vår organisation bidrar till befolkningens kunskap om hälsans bestämningsfaktorer. ",1,"Instämmer inte alls",null,"Instämmer helt"]
["5.4.5 Vår organisation utvecklar modeller eller arenor för dialog med beslutsfattare",1,"Instämmer inte alls",null,"Instämmer helt"]
[null,null,null,null,null,null,18]
["Gå till Indikatorer från \"Vården i siffror\""]
["Se resultat"]

{"sheet":"Indikatorer","index":8,"n_rows":27,"n_cols":3,"rows_kept":27,"cut":false,"hidden":false,"merged":[[2,2,4,2]]}
[]
[{"$f":"Basdata!C4","v":"Ange organisation"}]
["Indikatorer på hälsofrämjande hälso- och sjukvård",null,"Bedömning"]
["Länk till vården i siffror"]
["Patientperspektivet"]
["Förebyggande"]
["Fysiskt träningsprogram 11–13 månader efter hjärtinfarkt",1]
["Icke-rökare vid diabetes – primärvård",1]
["Rådgivning till personer med riskbruk av alkohol",1]
["Rådgivning till personer med otillräcklig fysisk aktivitet",1]
["Rådgivning till personer med riskbruk av alkohol",1]
["Rådgivning till personer som är dagligrökare",1]
["Rökning vid KOL",1]
["Rökstopp 11-13 månader efter hjärtinfarkt",1]
["Rökstopp efter stroke",1]
["Screening för riskbruk av alkohol före graviditet",1]
["Hälsofrämjande"]
["Positiv upplevelse av delaktighet hos patienter som besökt en öppenvårdsmottagning på sjukhus",1]
["Positiv upplevelse av delaktighet i vården hos patienter som besökt en akutmottagning",1]
["Positiv upplevelse av delaktighet i vården hos patienter som besökt en primärvårdsmottagning",1]
["Positiv upplevelse av information och kunskap efter att ha besökt en öppenvårdsmottagning på sjukhus",1]
["Positiv upplevelse av information och kunskap hos patienter som besökt en primärvårdsmottagning",1]
["Positivt diskutera levnadsvanor vid besök i sjukvård",1]
["Medarbetarperspektivet"]
["Medarbetarengagemang (HME) hälso- och sjukvård totalt - Ledarskapsindex",1]
["Medarbetarengagemang (HME) hälso- och sjukvård totalt - Motivationsindex",1]
["Medarbetarengagemang (HME) hälso- och sjukvård totalt - Styrningsindex",1]

{"sheet":"Diagram","index":9,"n_rows":0,"n_cols":0,"rows_kept":0,"cut":false,"hidden":false,"merged":[]}

{"sheet":"Handlingsplan","index":10,"n_rows":9,"n_cols":8,"rows_kept":9,"cut":false,"hidden":false,"merged":[]}
[]
[]
[]
[]
[]
[]
[]
[]
[null,"Standard som behöver utvecklas","Kommentar","Orsaksfaktorer","Mål","Aktiviteter","Ansvarig","Mätning/Resultat"]

{"sheet":" ","index":11,"n_rows":81,"n_cols":5,"rows_kept":81,"cut":false,"hidden":false,"merged":[]}
[null,"Värde",null,null,"Kommentar"]
["1.1.1 Vår organisation har en hälsofrämjande hälso- och sjukvård som en del av sin övergripande strategi.",{"$f":"Standard1!B6","v":1},null,{"$f":"IF(B2<4,\"Handlingsplan\",\"Ok\")","v":"Handlingsplan"},{"$f":"Standard1!G6","v":0}]
["1.1.2 Vår organisations högsta ledning agerar i enlighet med den övergripande strategin.",{"$f":"Standard1!B7","v":1},null,"Handlingsplan",{"$f":"Standard1!G7","v":0}]
["1.1.3 Vår organisation har en kultur som präglas av hälsorientering.",{"$f":"Standard1!B8","v":1},null,"Handlingsplan",{"$f":"Standard1!G8","v":0}]
["1.1.4 Vår organisation följer upp utvecklingen av hälsofrämjande hälso- och sjukvård",{"$f":"Standard1!B9","v":1},null,"Handlingsplan",{"$f":"Standard1!G9","v":0}]
["1.1.5 Ledningen säkerställer förutsättningar för en hälsofrämjande hälso- och sjukvård t ex infrastruktur, resurser, lokaler och utrustning.",{"$f":"Standard1!B10","v":1},null,"Handlingsplan",{"$f":"Standard1!G10","v":0}]
["1.2.1 Vår organisations uttalade mål och uppdrag fokuserar på bästa möjliga hälsovinst för patienterna.",{"$f":"Standard1!B12","v":1},null,"Handlingsplan",{"$f":"Standard1!G12","v":0}]
["1.2.2 Vår organisations mål och uppdrag kommuniceras tydligt till alla intressenter.",{"$f":"Standard1!B13","v":1},null,"Handlingsplan",{"$f":"Standard1!G13","v":0}]
["1.3.1 Vår organisation följer systematiskt hälsan och dess bestämningsfaktorer i befolkningen som grund för planering av våra hälso- och sjukvårdstjänster.",{"$f":"Standard1!B15","v":1},null,"Handlingsplan",{"$f":"Standard1!G15","v":0}]
["1.3.2 Vår organisation följer systematiskt hälsan och dess bestämningsfaktorer i befolkningen som grund för genomförande och utveckling av våra hälso- och sjukvårdstjänster.",{"$f":"Standard1!B16","v":1},null,"Handlingsplan",{"$f":"Standard1!G16","v":0}]
["1.3.3 Organisationen utvärderar systematiskt våra åtgärder för att förbättra patienternas hälsovinst. ",{"$f":"Standard1!B17","v":1},null,"Handlingsplan",{"$f":"Standard1!G17","v":0}]
["Standard 1. Organisationens engagemang",null,{"$f":"SUM(B2:B11)/COUNTIF(B2:B11,\">0\")","v":1},"Tom"]
[null,null,null,"Tom"]
[null,"Värde",null,"Tom"]
["2.1.1 Vår organisation informerar alla patienter om deras rättigheter kopplat till hälso- och sjukvård.",{"$f":"Standard2!B6","v":1},null,{"$f":"IF(B15<4,\"Handlingsplan\",\"Ok\")","v":"Handlingsplan"},{"$f":"Standard2!G6","v":0}]
["2.1.2 Vår organisation har en policy för att bedöma och ge stöd till grupper och individer med särskild risk för ohälsa.",{"$f":"Standard2!B7","v":1},null,"Handlingsplan",{"$f":"Standard2!G7","v":0}]
["2.2.1 Vår organisation erbjuder tillgänglig och användbar information om sina hälso- och sjukvårdstjänster för alla.",{"$f":"Standard2!B9","v":1},null,"Handlingsplan",{"$f":"Standard2!G9","v":0}]
["2.2.2 Vår organisation erbjuder riktade insatser till grupper och individer med särskild risk för ohälsa.",{"$f":"Standard2!B10","v":1},null,"Handlingsplan",{"$f":"Standard2!G10","v":0}]
["2.3.1 Vår organisation uppvisar förståelse och respekt för olika värderingar, behov och preferenser hos individer och grupper i samhället. ",{"$f":"Standard2!B12","v":1},null,"Handlingsplan",{"$f":"Standard2!G12","v":0}]
["2.1.1 Vår organisation genomför riktade åtgärder för att säkerställa att alla patienters rättigheter och särskilda behov respekteras.",{"$f":"Standard2!B13","v":1},null,"Handlingsplan",{"$f":"Standard2!G13","v":0}]
["Standard 2. Tillgång till hälso- och sjukvård",null,{"$f":"SUM(B15:B20)/COUNTIF(B15:B20,\">0\")","v":1},"Tom"]
[null,null,null,"Tom"]
[null,"Värde",null,"Tom"]
["3.1.1 Vår organisation samverkar med patienter, närstående och andra vårdgivare för att utveckla metoder för att bedöma patienters behov av hälso- och sjukvårdsinsatser",{"$f":"Standard3!B6","v":1},null,"Handlingsplan",{"$f":"Standard3!G6","v":0}]
["3.1.2 Vår organisation har metoder för att bedöma och dokumentera behovet av interventioner avseende riskfaktorer såsom tobak, alkohol, matvanor och fysisk inaktivitet.",{"$f":"Standard3!B7","v":1},null,"Handlingsplan",{"$f":"Standard3!G7","v":0}]
["3.1.3 Vår organisation har rutiner för att identifiera psykisk ohälsa hos somatiskt sjuka patienter.",{"$f":"Standard3!B8","v":1},null,"Handlingsplan",{"$f":"Standard3!G8","v":0}]
["3.1.4 Vår organisation har rutiner för att identifiera somatisk ohälsa hos patienter med psykisk ohälsa eller sjukdom",{"$f":"Standard3!B9","v":1},null,"Handlingsplan",{"$f":"Standard3!G9","v":0}]
["3.1.5 Vår organisation har rutiner för att identifierar  behov hos särskilt sårbara grupper för att åstadkomma en mer jämlik vård.",{"$f":"Standard3!B10","v":1},null,"Handlingsplan",{"$f":"Standard3!G10","v":0}]
["3.2.1 Vår organisation stödjer medverkan från alla berörda i planering, genomförande och utvärdering av hälso- och sjukvården.",{"$f":"Standard3!B12","v":1},null,"Handlingsplan",{"$f":"Standard3!G12","v":0}]
["3.2.2 I vår organisation sker patientmöten med hänsyn till patientintegritet och med tillräcklig tid avsatt för att stödja effektiv kommunikation. ",{"$f":"Standard3!B13","v":1},null,"Handlingsplan",{"$f":"Standard3!G13","v":0}]
["3.2.3 Vår organisation bjuder in och gör det möjligt för alla patienter och närstående att bli aktiva partners i vården och partners för delat beslutsfattande.",{"$f":"Standard3!B14","v":1},null,"Handlingsplan",{"$f":"Standard3!G14","v":0}]
["3.2.4 Vår organisation erbjuder alla patienter individuellt anpassade hälso- och sjukvårdsinsatser",{"$f":"Standard3!B15","v":1},null,"Handlingsplan",{"$f":"Standard3!G15","v":0}]
["3.3.1 Vår organisation arbetar personcentrerat med delat beslutsfattande för att stödja patienter och närstående som vill vara aktiva i vården.",{"$f":"Standard3!B17","v":1},null,"Handlingsplan",{"$f":"Standard3!G17","v":0}]
["3.3.2 Vår organisation säkerställer personalens kompetens i tekniker som stödjer kommunikation och personcentrerad vård.",{"$f":"Standard3!B18","v":1},null,"Handlingsplan",{"$f":"Standard3!G18","v":0}]
["3.3.3 I vår organisation har vi ett hälsofrämjande förhållningssätt i alla möten. ",{"$f":"Standard3!B19","v":1},null,"Handlingsplan",{"$f":"Standard3!G19","v":0}]
["3.3.4 Vår organisation har tillgång till tolk där det behövs för att underlätta kommunikation med patient och närstående.",{"$f":"Standard3!B20","v":1},null,"Handlingsplan",{"$f":"Standard3!G20","v":0}]
["3.4.1 Vår organisation har tydlig, relevant och förståelig information till patienter och närstående om tillstånd, behandling, vård samt om faktorer som påverkar deras hälsa.",{"$f":"Standard3!B22","v":1},null,"Handlingsplan",{"$f":"Standard3!G22","v":0}]
["3.4.2 Vår organisation erbjuder rådgivning om tobak, alkohol, matvanor och fysisk aktivitet baserat på individuell bedömning av patientens behov och önskemål.",{"$f":"Standard3!B23","v":1},null,"Handlingsplan",{"$f":"Standard3!G23","v":0}]
["3.4.3 Vår organisation genomför insatser som stödjer egenvård.",{"$f":"Standard3!B24","v":1},null,"Handlingsplan",{"$f":"Standard3!G24","v":0}]
["3.5.1 Vår organisation samarbetar med andra för att patienten ska uppleva en sammanhållen vård.",{"$f":"Standard3!B26","v":1},null,"Handlingsplan",{"$f":"Standard3!G26","v":0}]
["3.5.2 Vår organisation har tydliga rutiner för att utbyta relevant patientinformation i rätt tid med andra organisationer.",{"$f":"Standard3!B27","v":1},null,"Handlingsplan",{"$f":"Standard3!G27","v":0}]
["Standard 3. Personcentrering och samskapande",null,{"$f":"SUM(B24:B41)/COUNTIF(B24:B41,\">0\")","v":1},"Tom"]
[null,null,null,"Tom"]
[null,"Värde",null,"Tom"]
["4.1.1 Vår organisation gör regelbundet bedömning av medarbetarnas hälsobehov och erbjuder hälsofrämjande insatser avseende tobak, alkohol, matvanor, fysisk aktivitet och psykosocial stress.",{"$f":"Standard4!B6","v":1},null,"Handlingsplan",{"$f":"Standard4!G6","v":0}]
["4.1.2 Vår organisation utvecklar medarbetarnas kunskap om faktorer som påverkar deras hälsa.",{"$f":"Standard4!B7","v":1},null,"Handlingsplan",{"$f":"Standard4!G7","v":0}]
["4.1.3 Vår organisation säkerställer medarbetarmedverkan i beslut som påverkar vårdprocesser och deras arbetsmiljö.",{"$f":"Standard4!B8","v":1},null,"Handlingsplan",{"$f":"Standard4!G8","v":0}]
["4.1.4 Vår organisation utvecklar arbetssätt med multidisciplinära team där det är relevant.",{"$f":"Standard4!B9","v":1},null,"Handlingsplan",{"$f":"Standard4!G9","v":0}]
["4.1.5 Vår organisation etablerar en hälsofrämjande arbetsplats avseende psykosocial arbetsmiljö",{"$f":"Standard4!B10","v":1},null,"Handlingsplan",{"$f":"Standard4!G10","v":0}]
["4.2.1 Vår organisation erbjuder en miljö där patienter, närstående och medarbetare känner sig trygga och där deras värdighet och integritet respekteras",{"$f":"Standard4!B12","v":1},null,"Handlingsplan",{"$f":"Standard4!G12","v":0}]
["4.2.2 Vår organisation erbjuder en miljö som är inkluderande och tillgänglig",{"$f":"Standard4!B13","v":1},null,"Handlingsplan",{"$f":"Standard4!G13","v":0}]
["4.2.3 Vår organisation erbjuder utrymmen för återhämtning, rörelse och gemenskap för patienter och närstående",{"$f":"Standard4!B14","v":1},null,"Handlingsplan",{"$f":"Standard4!G14","v":0}]
["4.2.4 Vår organisation tillhandahåller hälsosam mat.",{"$f":"Standard4!B15","v":1},null,"Handlingsplan",{"$f":"Standard4!G15","v":0}]
["4.2.5 Vår organisation säkerställer att vårdmiljön är rökfri. ",{"$f":"Standard4!B16","v":1},null,"Handlingsplan",{"$f":"Standard4!G16","v":0}]
["4.2.6 Vår organisation minimerar onödigt buller. ",{"$f":"Standard4!B17","v":1},null,"Handlingsplan",{"$f":"Standard4!G17","v":0}]
["Standard 4. Hälsosam arbetsplats och miljö",null,{"$f":"SUM(B45:B55)/COUNTIF(B45:B55,\">0\")","v":1},"Tom"]
[null,null,null,"Tom"]
[null,"Värde",null,"Tom"]
["5.1.1 Vår organisation samlar in data om vårdkonsumtion för befolkningen i upptagningsområdet, som ett underlag för att förbättra tillgången till och jämlikheten i hälso- och sjukvården.",{"$f":"Standard5!B6","v":1},null,"Handlingsplan",{"$f":"Standard5!G6","v":0}]
["5.1.2 Vår organisation samarbetar med andra samhällsaktörer för att samla information om befolkningens hälsa",{"$f":"Standard5!B7","v":1},null,"Handlingsplan",{"$f":"Standard5!G7","v":0}]
["5.1.3 Vår organisation samlar information om fördelningen av hälsans bestämningsfaktorer i befolkningen för att identifiera behov av sjukdomsförebyggande och hälsofrämjande insatser.",{"$f":"Standard5!B8","v":1},null,"Handlingsplan",{"$f":"Standard5!G8","v":0}]
["5.1.4 Baserat på bedömningen av behov har vår organisation identifierat åtgärder och samarbetspartners för att förbättra hälsan hos befolkningen i lokalsamhället.",{"$f":"Standard5!B9","v":1},null,"Handlingsplan",{"$f":"Standard5!G9","v":0}]
["5.2.1 Vår organisation genomför uppsökande insatser för utvalda åldersgrupper i primärpreventivt syfte.",{"$f":"Standard5!B11","v":1},null,"Handlingsplan",{"$f":"Standard5!G11","v":0}]
["5.2.2 Vår organisation samverkar med andra samhällsaktörer och tar initiativ för kunskapsöverföring om faktorer som påverkar hälsan och deltar i gemensamma insatser.",{"$f":"Standard5!B12","v":1},null,"Handlingsplan",{"$f":"Standard5!G12","v":0}]
["5.2.3 Vår organisation tar ansvar för nya arbetsformer till grupper med särskild risk för ohälsa i samhället ",{"$f":"Standard5!B13","v":1},null,"Handlingsplan",{"$f":"Standard5!G13","v":0}]
["5.3.1 Vår organisation bidrar till minskad miljöpåverkan genom att främja användningen av säkra kemikalier, material och processer.",{"$f":"Standard5!B15","v":1},null,"Handlingsplan",{"$f":"Standard5!G15","v":0}]
["5.3.2 Vår organisation minskar volym och skadlighet av avfall.",{"$f":"Standard5!B16","v":1},null,"Handlingsplan",{"$f":"Standard5!G16","v":0}]
["Vår organisation minskar användning av fossil energi och främjar energieffektivitet.",{"$f":"Standard5!B17","v":1},null,"Handlingsplan",{"$f":"Standard5!G17","v":0}]
["5.3 3 Vår organisation genomför åtgärder för återvinning.",{"$f":"Standard5!B18","v":1},null,"Handlingsplan",{"$f":"Standard5!G18","v":0}]
["5.3.4 Vår organisation väljer behandlingsalternativ som minskar vattenförbrukning och miljöfarliga utsläpp.",{"$f":"Standard5!B19","v":1},null,"Handlingsplan",{"$f":"Standard5!G19","v":0}]
["5.4.1 Vår organisation främjar forskning om hälsofrämjande och sjukdomsförebyggande metoder och innovationer riktade till grupper med särkild risk för ohälsa i syfte att förbättra tillgänglighet och kvalitet i vården. ",{"$f":"Standard5!B21","v":1},null,"Handlingsplan",{"$f":"Standard5!G21","v":0}]
["5.4.2 Vår organisation bidrar aktivt till kunskapsspridning i internationella, nationella eller regionala nätverk för hälsofrämjande hälso- och sjukvård.",{"$f":"Standard5!B22","v":1},null,"Handlingsplan",{"$f":"Standard5!G22","v":0}]
["5.4.3 Vår organisation stödjer  forskningsaktiviteter som involverar patienter, närstående och invånare.",{"$f":"Standard5!B23","v":1},null,"Handlingsplan",{"$f":"Standard5!G23","v":0}]
["5.4.4 Vår organisation bidrar till befolkningens kunskap om hälsans bestämningsfaktorer. ",{"$f":"Standard5!B24","v":1},null,"Handlingsplan",{"$f":"Standard5!G24","v":0}]
["5.4.5 Vår organisation utvecklar modeller eller arenor för dialog med beslutsfattare",{"$f":"Standard5!B25","v":1},null,"Handlingsplan",{"$f":"Standard5!G25","v":0}]
["Standard 5. Främja hälsa i befolkning",null,{"$f":"SUM(B59:B75)/COUNTIF(B59:B75,\">0\")","v":1},"Tom"]
[null,null,null,"Tom"]
["Indikatorer från vården i siffror - Patientperspektivet",null,null,"Tom"]
["Bättre än rikssnittet ",{"$f":"COUNTIF(Indikatorer!B7:B27,\"=1\")","v":19},null,"Tom"]
["Sämre än rikssnittet ",{"$f":"COUNTIF(Indikatorer!B7:B27,\"=2\")","v":0},null,"Tom"]
["Ej relevant",{"$f":"COUNTIF(Indikatorer!B7:B27,\"=3\")","v":0},null,"Tom"]